bitfinex-derivatives/quotes_BTCF0:USTF0_20241117
["timestamp","ask_amount","ask_price","bid_price","bid_amount"]
[1731855216015,0.44697286,90357.0,90353.0,0.850135]
[1731855216431,0.36224,90357.0,90353.0,0.050135]
[1731855216726,0.00144,90357.0,90353.0,0.410935]
[1731855216925,0.08473286,90364.0,90353.0,1.210935]
[1731855217335,0.08473286,90364.0,90353.0,1.24691233]
[1731855219323,0.08473286,90356.0,90353.0,1.210935]
[1731855219714,0.08473286,90356.0,90353.0,0.410935]
[1731855220121,0.08473286,90363.0,90353.0,1.210935]
[1731855220935,0.055333,90357.0,90353.0,1.210935]
[1731855221229,0.08473286,90363.0,90353.0,1.210935]
[1731855221417,0.0308,90362.0,90353.0,1.210935]
[1731855221621,0.14006586,90356.0,90353.0,0.410935]
[1731855222229,0.055334,90355.0,90353.0,0.410935]
[1731855222428,0.05699566,90354.0,90353.0,0.050135]
[1731855223736,0.00166066,90354.0,90353.0,0.050135]
[1731855227232,0.05699566,90354.0,90353.0,0.050135]
[1731855228334,0.055335,90354.0,90353.0,0.050135]
[1731855233841,0.055339,90347.0,90344.0,0.8]
[1731855234033,0.05534,90346.0,90345.0,0.05534]
[1731855234638,0.08473286,90349.0,90340.0,0.055343]
[1731855234840,0.055343,90341.0,90340.0,0.055343]
[1731855235032,0.08473286,90349.0,90340.0,0.3608]
[1731855235228,0.08473286,90349.0,90341.0,0.8]
[1731855235636,0.09828,90354.0,90353.0,0.055335]
[1731855236445,0.45908,90360.0,90348.0,0.3608]
[1731855236740,0.09828,90360.0,90359.0,0.055332]
[1731855237739,0.153611,90360.0,90359.0,0.055332]
[1731855238545,0.09828,90360.0,90359.0,0.055332]
[1731855239245,0.09828,90360.0,90359.0,0.855332]
[1731855239946,0.515846,90369.0,90359.0,0.8]
[1731855240150,0.36224,90369.0,90365.0,0.055328]
[1731855240743,0.00144,90369.0,90365.0,0.055328]
[1731855241045,0.08473286,90370.0,90365.0,0.120228]
[1731855241251,0.08473286,90370.0,90365.0,0.31875872]
[1731855241637,0.08473286,90377.0,90365.0,0.120228]
[1731855241837,0.08473286,90377.0,90365.0,0.31875872]
[1731855242350,0.08473286,90377.0,90365.0,0.120228]
[1731855242545,0.08473286,90377.0,90365.0,0.31895257]
[1731855242851,0.08473286,90377.0,90365.0,0.120228]
[1731855244251,0.08473286,90377.0,90365.0,0.481028]
[1731855244755,0.08473286,90377.0,90365.0,0.74606562]
[1731855245355,0.08473286,90377.0,90365.0,0.481028]
[1731855245649,0.13129472,90383.0,90365.0,0.481028]
[1731855245952,0.31430758,90384.0,90365.0,0.481028]
[1731855246143,0.08473286,90377.0,90365.0,0.481028]
[1731855249053,0.08473286,90377.0,90365.0,0.50317421]
[1731855250451,0.05532,90378.0,90365.0,0.50317421]
[1731855250654,0.08473286,90381.0,90365.0,0.50317421]
[1731855251245,0.0692,90386.0,90365.0,0.76821423]
[1731855251451,0.0692,90386.0,90385.0,0.055316]
[1731855251452,0.0052,90386.0,90385.0,0.055316]
[1731855251656,0.45884,90387.0,90383.0,0.055317]
[1731855251657,0.515595,90387.0,90383.0,0.055317]
[1731855251863,0.514155,90387.0,90383.0,0.055317]
[1731855252160,0.514155,90387.0,90373.0,0.3608]
[1731855252355,0.00013833,90386.0,90384.0,0.055316]
[1731855253858,0.05545333,90386.0,90384.0,0.055316]
[1731855255260,0.05545333,90386.0,90373.0,0.3608]
[1731855255261,0.00013833,90386.0,90373.0,0.3608]
[1731855255567,0.08473286,90375.0,90367.0,0.032]
[1731855255859,0.08473286,90368.0,90364.0,0.055328]
[1731855256062,0.055327,90367.0,90364.0,0.09093541]
[1731855256265,0.087427,90367.0,90364.0,0.09093541]
[1731855257257,0.0321,90367.0,90365.0,0.055328]
[1731855257457,0.36224,90368.0,90367.0,0.055327]
[1731855257663,0.3608,90368.0,90367.0,0.055327]
[1731855259464,0.3608,90372.0,90367.0,0.055327]
[1731855259667,0.3608,90372.0,90368.0,0.055326]
[1731855259961,0.055324,90373.0,90368.0,0.055326]
[1731855261455,0.3608,90371.0,90368.0,0.055326]
[1731855262465,0.3608,90371.0,90364.0,0.09093541]
[1731855262466,0.055325,90370.0,90364.0,0.09093541]
[1731855262656,0.055325,90370.0,90365.0,0.055328]
[1731855263861,0.055325,90370.0,90366.0,0.055327]
[1731855264758,0.18512,90378.0,90373.0,0.055323]
[1731855264966,0.1298,90378.0,90376.0,0.055321]
[1731855265358,0.0318,90378.0,90377.0,0.8]
[1731855266774,0.18661172,90384.0,90381.0,0.055318]
[1731855266965,0.055317,90384.0,90381.0,0.055318]
[1731855267364,0.055317,90384.0,90377.0,0.8]
[1731855267668,0.13143305,90386.0,90383.0,0.055317]
[1731855267875,0.00013833,90386.0,90383.0,0.055317]
[1731855268969,0.13159947,90384.0,90383.0,0.055317]
[1731855269265,0.00013833,90386.0,90383.0,0.055317]
[1731855269266,0.13159947,90385.0,90383.0,0.055317]
[1731855270275,0.05545333,90386.0,90383.0,0.055317]
[1731855270276,0.13159947,90384.0,90383.0,0.055317]
[1731855270861,0.13162985,90384.0,90383.0,0.055317]
[1731855271062,0.13163333,90384.0,90383.0,0.055317]
[1731855271267,0.05545333,90386.0,90383.0,0.055317]
[1731855271866,0.08473286,90384.0,90383.0,0.055317]
[1731855278563,0.00013833,90386.0,90377.0,0.03548344]
[1731855278564,0.00013833,90386.0,90381.0,0.19857276]
[1731855278764,0.00013833,90386.0,90385.0,0.055316]
[1731855282384,0.05570612,90386.0,90385.0,0.055316]
[1731855284981,0.05570612,90386.0,90381.0,0.19857276]
[1731855284982,0.055316,90384.0,90381.0,0.19857276]
[1731855285183,0.055324,90371.0,90370.0,0.19885352]
[1731855285487,0.055324,90371.0,90364.0,0.00165981]
[1731855285488,0.41636779,90371.0,90364.0,0.00165981]
[1731855285674,0.3608,90371.0,90368.0,0.055326]
[1731855285884,0.055325,90369.0,90368.0,0.055326]
[1731855287782,0.05556779,90369.0,90364.0,0.00165981]
[1731855287981,0.055328,90365.0,90364.0,0.05698781]
[1731855289286,0.055328,90365.0,90364.0,0.00165981]
[1731855292591,0.18683513,90365.0,90364.0,0.00165981]
[1731855292777,0.055328,90365.0,90364.0,0.00165981]
[1731855293487,0.18683123,90365.0,90364.0,0.00165981]
[1731855294585,0.055328,90365.0,90364.0,0.00165981]
[1731855295386,0.18683123,90365.0,90364.0,0.00165981]
[1731855295586,0.055328,90365.0,90364.0,0.00165981]
[1731855295788,0.055328,90365.0,90351.0,0.055336]
[1731855295991,0.055328,90365.0,90332.0,0.45744001]
[1731855295992,0.055342,90342.0,90341.0,0.0052]
[1731855296292,0.09784,90348.0,90347.0,0.055339]
[1731855298091,0.153178,90348.0,90347.0,0.055339]
[1731855300198,0.09784,90348.0,90347.0,0.055339]
[1731855300403,0.09784,90348.0,90338.0,0.8]
[1731855300602,0.05534,90346.0,90338.0,0.8]
[1731855300803,0.055341,90345.0,90343.0,0.055341]
[1731855301197,0.09784,90348.0,90338.0,0.83612695]
[1731855301400,0.09784,90348.0,90341.0,0.055342]
[1731855301401,0.055341,90344.0,90341.0,0.055342]
[1731855301906,0.14005282,90344.0,90341.0,0.055342]
[1731855304203,0.055343,90341.0,90338.0,0.8]
[1731855304405,0.055344,90340.0,90338.0,0.8]
[1731855308098,0.085439,90347.0,90338.0,0.8]
[1731855308300,0.09788,90345.0,90343.0,0.055341]
[1731855309008,0.09788,90345.0,90341.0,0.055342]
[1731855309198,0.09788,90346.0,90338.0,0.8]
[1731855309399,0.09788,90346.0,90342.0,0.055342]
[1731855310208,0.05562281,90343.0,90342.0,0.055342]
[1731855315402,0.11096481,90343.0,90338.0,0.8]
[1731855315813,0.05562281,90342.0,90336.0,0.055346]
[1731855316007,0.05562281,90337.0,90336.0,0.055346]
[1731855316209,0.05562281,90337.0,90336.0,0.855346]
[1731855320716,0.05562281,90337.0,90336.0,1.12070031]
[1731855321521,0.05562281,90337.0,90336.0,0.855346]
[1731855324818,0.18712604,90343.0,90337.0,0.055345]
[1731855325017,0.18712604,90343.0,90339.0,0.26560457]
[1731855325222,0.13150323,90344.0,90342.0,0.055342]
[1731855325415,0.13187387,90350.0,90348.0,0.055338]
[1731855325611,0.13187387,90351.0,90349.0,0.26568548]
[1731855325814,0.13187387,90351.0,90350.0,0.32102248]
[1731855326013,0.13193816,90352.0,90347.0,0.05562281]
[1731855326213,0.36232,90361.0,90352.0,0.055336]
[1731855326214,0.13193816,90354.0,90352.0,0.055336]
[1731855326413,0.13193816,90359.0,90358.0,0.055332]
[1731855326622,0.13193816,90362.0,90360.0,0.055331]
[1731855327217,0.13193816,90365.0,90357.0,0.2654959]
[1731855327416,0.13193816,90365.0,90364.0,0.055328]
[1731855327614,0.13193816,90366.0,90364.0,0.055328]
[1731855328322,0.05728365,90367.0,90366.0,0.055327]
[1731855328323,0.18922181,90367.0,90366.0,0.055327]
[1731855328724,0.05728365,90367.0,90366.0,0.055327]
[1731855330027,0.00166084,90367.0,90366.0,0.055327]
[1731855340430,0.00166084,90367.0,90366.0,0.07747195]
[1731855343434,0.13048,90384.0,90366.0,0.07747195]
[1731855343435,0.033,90384.0,90377.0,0.055321]
[1731855343641,0.08862281,90384.0,90379.0,0.3608]
[1731855343941,0.08862281,90384.0,90383.0,0.055317]
[1731855343942,0.11093881,90384.0,90383.0,0.055317]
[1731855345225,0.055319,90380.0,90379.0,0.055319]
[1731855346130,0.05562281,90380.0,90373.0,0.055323]
[1731855346330,0.11094481,90374.0,90373.0,0.055323]
[1731855347731,0.05562281,90374.0,90362.0,0.3608]
[1731855348042,0.0956,90373.0,90362.0,0.3608]
[1731855348339,0.15122281,90373.0,90371.0,0.055324]
[1731855348930,0.0301,90373.0,90371.0,0.055324]
[1731855349128,0.36224,90376.0,90375.0,0.055322]
[1731855349337,0.09748,90380.0,90379.0,0.055319]
[1731855349845,0.11093981,90383.0,90378.0,0.3608]
[1731855350151,0.00013833,90386.0,90385.0,0.055316]
[1731855350743,0.055317,90383.0,90378.0,0.3608]
[1731855350942,0.05562281,90381.0,90371.0,0.0302]
[1731855351442,0.05562281,90381.0,90371.0,0.065534]
[1731855351944,0.05562281,90381.0,90379.0,0.055319]
[1731855353335,0.05562281,90381.0,90371.0,0.065534]
[1731855353336,0.05562281,90381.0,90380.0,0.055319]
[1731855359446,0.05562281,90381.0,90380.0,0.3208149]
[1731855359945,0.05562281,90381.0,90380.0,0.055319]
[1731855360144,0.05562281,90381.0,90380.0,0.32063604]
[1731855360348,0.05562281,90381.0,90380.0,0.055319]
[1731855360736,0.05562281,90381.0,90380.0,0.3206464]
[1731855360948,0.05562281,90381.0,90380.0,0.055319]
[1731855361145,0.05576114,90386.0,90380.0,0.3206464]
[1731855361336,0.05576114,90386.0,90385.0,0.055316]
[1731855364744,0.11107614,90386.0,90385.0,0.055316]
[1731855365943,0.11107614,90386.0,90379.0,0.395612]
[1731855365944,0.05576114,90386.0,90379.0,0.6609394]
[1731855366248,0.11094181,90380.0,90379.0,0.416119]
[1731855366449,0.16656462,90380.0,90379.0,0.3608]
[1731855366645,0.055322,90374.0,90373.0,0.055323]
[1731855366838,0.055325,90370.0,90368.0,0.3206534]
[1731855367038,0.05562281,90369.0,90368.0,0.055326]
[1731855367950,0.05562281,90369.0,90368.0,0.09075091]
[1731855368150,0.11094781,90369.0,90368.0,0.09075091]
[1731855368952,0.11094781,90369.0,90368.0,0.35607831]
[1731855368953,0.05562281,90369.0,90368.0,0.35607831]
[1731855370053,0.11094781,90369.0,90368.0,0.35607831]
[1731855371654,0.11094781,90369.0,90368.0,0.09075091]
[1731855372049,0.11094781,90369.0,90368.0,0.35607831]
[1731855373054,0.11094781,90369.0,90368.0,0.09075091]
[1731855373755,0.05562281,90369.0,90368.0,0.35607831]
[1731855373957,0.05562281,90369.0,90368.0,0.09075091]
[1731855374651,0.11124562,90369.0,90356.0,0.0009185]
[1731855374856,0.11124562,90369.0,90343.0,0.3608]
[1731855374857,0.055335,90355.0,90343.0,0.3608]
[1731855375056,0.13186286,90350.0,90343.0,0.3608]
[1731855375249,0.13186286,90351.0,90343.0,0.3608]
[1731855375457,0.13186286,90354.0,90344.0,0.0331]
[1731855375651,0.13186286,90357.0,90344.0,0.0331]
[1731855375965,0.13186286,90366.0,90351.0,0.3608]
[1731855376264,0.0956,90367.0,90351.0,0.3608]
[1731855379865,0.05562281,90364.0,90351.0,0.3608]
[1731855380765,0.05562281,90364.0,90352.0,0.8]
[1731855382064,0.05562281,90358.0,90352.0,0.8]
[1731855383952,0.05562281,90358.0,90351.0,0.03609992]
[1731855384157,0.11095881,90352.0,90347.0,0.02214801]
[1731855384553,0.11095881,90352.0,90351.0,0.8]
[1731855384970,0.11095881,90352.0,90343.0,0.3608]
[1731855384971,0.05562281,90352.0,90343.0,0.3608]
[1731855385264,0.05562281,90344.0,90343.0,0.39605253]
[1731855385571,0.05562281,90344.0,90343.0,1.19605253]
[1731855386254,0.055334,90356.0,90343.0,1.19605253]
[1731855386763,0.055334,90356.0,90349.0,0.055337]
[1731855387166,0.08474132,90358.0,90343.0,1.19605253]
[1731855387360,0.05534,90345.0,90343.0,0.39605253]
[1731855387564,0.08474132,90344.0,90343.0,0.39605253]
[1731855387758,0.05534,90345.0,90343.0,0.39605253]
[1731855388073,0.05534,90345.0,90344.0,0.8]
[1731855393773,0.08474132,90351.0,90346.0,0.055339]
[1731855393774,0.055338,90348.0,90346.0,0.055339]
[1731855394364,0.055338,90348.0,90347.0,0.8]
[1731855403574,0.18720086,90348.0,90347.0,0.8]
[1731855403979,0.055338,90348.0,90347.0,0.8]
[1731855404778,0.18720086,90348.0,90347.0,0.8]
[1731855405178,0.055338,90348.0,90347.0,0.8]
[1731855405578,0.055341,90344.0,90343.0,0.055341]
[1731855405778,0.055341,90344.0,90341.0,0.02845061]
[1731855405779,0.3608,90344.0,90341.0,0.02845061]
[1731855405978,0.3608,90344.0,90339.0,0.055344]
[1731855406179,0.055343,90341.0,90340.0,0.8]
[1731855406378,0.055343,90341.0,90340.0,0.855343]
[1731855406981,0.3608,90344.0,90343.0,0.055341]
[1731855407489,0.416141,90344.0,90343.0,0.055341]
[1731855408380,0.47176088,90344.0,90343.0,0.055341]
[1731855410991,0.60362374,90344.0,90343.0,0.055341]
[1731855411587,0.47176088,90344.0,90343.0,0.055341]
[1731855411792,0.41641988,90344.0,90340.0,0.8]
[1731855411990,0.055343,90341.0,90340.0,0.8]
[1731855412788,0.055343,90340.0,90339.0,0.1988789]
[1731855412983,0.055343,90340.0,90335.0,0.1988789]
[1731855412984,0.055346,90336.0,90335.0,0.1988789]
[1731855413188,0.11096588,90336.0,90335.0,0.1988789]
[1731855413394,0.055346,90335.0,90334.0,0.1988789]
[1731855413692,0.055346,90335.0,90334.0,0.19912247]
[1731855413993,0.05561988,90336.0,90331.0,0.02875871]
[1731855413994,0.055347,90333.0,90331.0,0.02875871]
[1731855414289,0.055347,90333.0,90332.0,0.416148]
[1731855416289,0.05561988,90336.0,90334.0,0.055346]
[1731855416889,0.055346,90335.0,90334.0,0.055346]
[1731855418192,0.05561988,90336.0,90332.0,0.3608]
[1731855418390,0.055347,90333.0,90332.0,0.3608]
[1731855419193,0.055347,90333.0,90332.0,0.416148]
[1731855419691,0.055347,90333.0,90331.0,0.02875871]
[1731855419692,0.05561988,90333.0,90327.0,0.8]
[1731855419882,0.05561988,90333.0,90326.0,0.3302241]
[1731855419883,0.055351,90327.0,90326.0,0.00010743]
[1731855421784,0.055351,90327.0,90326.0,0.02865945]
[1731855421984,0.055351,90327.0,90326.0,0.00010743]
[1731855422186,0.14014389,90327.0,90326.0,0.00010743]
[1731855423697,0.14014389,90327.0,90326.0,0.19916676]
[1731855425406,0.14014389,90327.0,90326.0,0.00010743]
[1731855425994,0.14014389,90327.0,90326.0,0.19916676]
[1731855426394,0.14014389,90327.0,90326.0,0.00010743]
[1731855426904,0.14014389,90327.0,90326.0,0.19916676]
[1731855428090,0.14014389,90327.0,90326.0,0.00010743]
[1731855432209,0.14014389,90327.0,90326.0,0.19916676]
[1731855432404,0.14014389,90327.0,90326.0,0.00010743]
[1731855433000,0.14014389,90327.0,90326.0,0.19916676]
[1731855433996,0.14014389,90327.0,90326.0,0.00010743]
[1731855435508,0.14014389,90327.0,90326.0,0.19916676]
[1731855436397,0.14014389,90327.0,90326.0,0.00010743]
[1731855436603,0.14014389,90327.0,90326.0,0.19916676]
[1731855437504,0.14014389,90327.0,90326.0,0.00010743]
[1731855437697,0.14014389,90327.0,90326.0,0.19911325]
[1731855438114,0.14014389,90327.0,90326.0,0.00010743]
[1731855439706,0.14014389,90327.0,90326.0,0.19911325]
[1731855440414,0.14014389,90327.0,90326.0,0.00010743]
[1731855442308,0.1666548,90327.0,90326.0,0.00010743]
[1731855443011,0.1110029,90327.0,90326.0,0.00010743]
[1731855446407,0.1110029,90327.0,90326.0,0.26539947]
[1731855447506,0.1110029,90327.0,90326.0,0.05545943]
[1731855447818,0.1110029,90327.0,90326.0,0.00010743]
[1731855449903,0.24284944,90327.0,90326.0,0.00010743]
[1731855451516,0.24283028,90327.0,90326.0,0.00010743]
[1731855451718,0.24282488,90327.0,90326.0,0.00010743]
[1731855452022,0.1110029,90327.0,90326.0,0.00010743]
[1731855452521,0.2428232,90327.0,90326.0,0.00010743]
[1731855452711,0.1110029,90327.0,90326.0,0.00010743]
[1731855453310,0.2428232,90327.0,90326.0,0.00010743]
[1731855453615,0.1110029,90327.0,90326.0,0.00010743]
[1731855455819,0.1874722,90328.0,90327.0,0.055351]
[1731855456127,0.0556519,90328.0,90327.0,0.32117911]
[1731855457012,0.1110029,90328.0,90327.0,0.055351]
[1731855457818,0.18749083,90328.0,90327.0,0.055351]
[1731855458019,0.0556519,90328.0,90327.0,0.055351]
[1731855461422,0.0556519,90328.0,90326.0,0.00010743]
[1731855461423,0.18749083,90332.0,90331.0,0.055349]
[1731855463213,0.0556519,90332.0,90331.0,0.055349]
[1731855463917,0.417586,90336.0,90333.0,0.055347]
[1731855463918,0.49407893,90336.0,90333.0,0.055347]
[1731855464119,0.4164519,90336.0,90334.0,0.055347]
[1731855464323,0.4164519,90336.0,90335.0,0.26566207]
[1731855464514,0.4164519,90336.0,90334.0,0.055347]
[1731855465821,0.13192252,90340.0,90339.0,0.055344]
[1731855466026,8.359e-05,90340.0,90339.0,0.055344]
[1731855466213,8.359e-05,90340.0,90339.0,0.32096979]
[1731855466525,8.359e-05,90340.0,90339.0,0.3490185]
[1731855466722,8.359e-05,90340.0,90339.0,0.08339271]
[1731855467328,8.359e-05,90340.0,90339.0,0.02804871]
[1731855467515,0.05542659,90340.0,90338.0,0.26549709]
[1731855467823,0.05542659,90340.0,90332.0,0.055348]
[1731855467824,0.055345,90337.0,90336.0,0.19912725]
[1731855468027,0.2631688,90337.0,90336.0,0.19912725]
[1731855468519,0.2078238,90337.0,90334.0,0.19912725]
[1731855468715,0.1109979,90335.0,90334.0,0.19912725]
[1731855469327,0.1109979,90335.0,90333.0,0.19912725]
[1731855469523,0.0556519,90334.0,90333.0,0.19912725]
[1731855471230,0.055351,90328.0,90327.0,0.19912725]
[1731855471433,0.1110029,90328.0,90327.0,0.19912725]
[1731855474122,0.1110029,90328.0,90326.0,0.00010743]
[1731855474123,0.1666548,90328.0,90326.0,0.19925352]
[1731855474328,0.1666548,90328.0,90326.0,0.00010743]
[1731855474627,0.1316273,90327.0,90326.0,0.00010743]
[1731855474822,0.1666548,90328.0,90326.0,0.00010743]
[1731855475919,0.33149714,90328.0,90326.0,0.00010743]
[1731855476134,0.27614614,90328.0,90326.0,0.00010743]
[1731855476346,0.055351,90327.0,90326.0,0.00010743]
[1731855476633,0.22019334,90327.0,90326.0,0.00010743]
[1731855477020,0.055351,90327.0,90326.0,0.00010743]
[1731855477223,0.10920488,90327.0,90326.0,0.00010743]
[1731855478133,0.055351,90327.0,90326.0,0.00010743]
[1731855479229,0.055351,90327.0,90315.0,0.00166083]
[1731855479230,0.055358,90316.0,90315.0,0.00166083]
[1731855479532,0.1110099,90316.0,90315.0,0.00166083]
[1731855479737,0.17579321,90316.0,90315.0,0.00166083]
[1731855480529,0.1110099,90316.0,90315.0,0.00166083]
[1731855480730,0.17576232,90316.0,90315.0,0.00166083]
[1731855481633,0.30822022,90316.0,90315.0,0.05701983]
[1731855481831,0.37297264,90316.0,90315.0,0.05701983]
[1731855482333,0.06475242,90316.0,90315.0,0.05701983]
[1731855482633,0.06475242,90316.0,90315.0,0.41781983]
[1731855483035,0.06475242,90316.0,90315.0,1.21781983]
[1731855483244,0.25286222,90328.0,90315.0,1.21781983]
[1731855483545,0.16434472,90317.0,90316.0,0.055358]
[1731855483940,0.16434472,90317.0,90316.0,0.387518]
[1731855484234,0.16434472,90318.0,90317.0,0.055357]
[1731855484538,0.11433001,90320.0,90319.0,0.055356]
[1731855484739,0.19721032,90335.0,90320.0,0.055355]
[1731855485043,0.19721032,90339.0,90338.0,0.055344]
[1731855485239,0.06430206,90339.0,90334.0,0.3608]
[1731855485433,8.359e-05,90340.0,90339.0,0.055344]
[1731855486639,0.06103301,90340.0,90339.0,0.055344]
[1731855486935,8.359e-05,90340.0,90339.0,0.055344]
[1731855487140,0.06103301,90340.0,90339.0,0.055344]
[1731855488343,0.06103301,90340.0,90339.0,0.08379186]
[1731855489229,0.19716479,90340.0,90339.0,0.08379186]
[1731855489429,0.25811421,90340.0,90339.0,0.08379186]
[1731855489944,0.055346,90336.0,90335.0,0.8]
[1731855490140,0.055351,90327.0,90326.0,0.055351]
[1731855490442,0.11630042,90327.0,90326.0,0.055351]
[1731855490844,0.11630042,90327.0,90326.0,0.08357846]
[1731855493937,0.11370048,90327.0,90326.0,0.08357846]
[1731855494137,0.11370096,90327.0,90326.0,0.08357846]
[1731855494332,0.055351,90327.0,90326.0,0.08357846]
[1731855498550,0.055351,90327.0,90326.0,0.02822746]
[1731855498845,0.055353,90324.0,90323.0,0.055354]
[1731855502437,0.055354,90323.0,90320.0,0.88339134]
[1731855502641,0.055354,90323.0,90320.0,0.82803634]
[1731855502838,0.055354,90323.0,90321.0,0.055355]
[1731855503255,0.055354,90323.0,90322.0,0.055354]
[1731855504139,0.0631,90330.0,90320.0,0.82803634]
[1731855504346,0.19704803,90337.0,90336.0,0.055346]
[1731855504546,0.19704803,90342.0,90336.0,0.3608]
[1731855504748,0.19704803,90344.0,90337.0,0.8322]
[1731855505451,0.0847624,90338.0,90337.0,0.8322]
[1731855505652,0.055344,90338.0,90337.0,0.8]
[1731855506452,0.055346,90335.0,90328.0,0.02847088]
[1731855506748,0.1401084,90335.0,90334.0,0.055347]
[1731855506952,0.1401084,90335.0,90332.0,0.3608]
[1731855506953,0.055347,90333.0,90332.0,0.3608]
[1731855507148,0.0623,90334.0,90332.0,0.3608]
[1731855507353,0.0623,90334.0,90333.0,0.055347]
[1731855513349,0.11792395,90334.0,90332.0,0.3608]
[1731855513544,0.19731936,90333.0,90331.0,0.055348]
[1731855513751,0.30829131,90332.0,90331.0,0.055348]
[1731855513956,0.30829916,90332.0,90331.0,0.055348]
[1731855514253,0.30829916,90332.0,90330.0,0.02847277]
[1731855514254,0.055349,90331.0,90330.0,0.02847277]
[1731855514451,0.055349,90331.0,90330.0,0.055349]
[1731855514854,0.05562395,90332.0,90324.0,0.3608]
[1731855515056,0.05535,90329.0,90328.0,0.055349]
[1731855515560,0.25294661,90332.0,90331.0,0.055349]
[1731855515755,0.05562395,90332.0,90331.0,0.055349]
[1731855516461,0.22792266,90334.0,90333.0,0.055347]
[1731855519258,0.0306,90334.0,90333.0,0.055347]
[1731855519444,0.08578557,90334.0,90333.0,0.055347]
[1731855522362,0.28310823,90334.0,90333.0,0.055347]
[1731855523261,0.08578557,90334.0,90333.0,0.055347]
[1731855523656,0.05518557,90334.0,90333.0,0.055347]
[1731855523851,0.05521031,90334.0,90332.0,0.3608]
[1731855524166,0.05521031,90333.0,90332.0,0.194649]
[1731855524466,0.05521031,90333.0,90332.0,0.249997]
[1731855528467,0.05419869,90333.0,90332.0,0.249997]
[1731855528661,0.1974613,90340.0,90332.0,0.249997]
[1731855528863,0.1974613,90340.0,90339.0,0.055344]
[1731855531466,0.05428228,90340.0,90339.0,0.055344]
[1731855531661,8.359e-05,90340.0,90339.0,0.055344]
[1731855533053,0.05428228,90340.0,90339.0,0.055344]
[1731855533655,8.359e-05,90340.0,90339.0,0.055344]
[1731855534455,0.16461405,90340.0,90339.0,0.055344]
[1731855534654,0.16461405,90340.0,90339.0,0.16799696]
[1731855534856,8.359e-05,90340.0,90339.0,0.59603696]
[1731855535057,0.16453046,90344.0,90343.0,0.055341]
[1731855535257,0.16453046,90346.0,90345.0,0.05534]
[1731855535571,0.031,90360.0,90345.0,1.17118226]
[1731855535572,0.16453046,90354.0,90345.0,1.17118226]
[1731855535766,0.031,90360.0,90353.0,0.3608]
[1731855535767,0.16453046,90355.0,90353.0,0.3608]
[1731855535967,0.00013498,90354.0,90353.0,0.416135]
[1731855539369,0.00013498,90354.0,90353.0,0.44418247]
[1731855542479,0.05546998,90354.0,90353.0,0.416135]
[1731855542664,0.055338,90348.0,90347.0,0.055338]
[1731855542866,0.14009945,90348.0,90347.0,0.055338]
[1731855544368,0.52690544,90354.0,90352.0,0.055336]
[1731855544568,0.36093498,90354.0,90352.0,0.055336]
[1731855544772,0.00013498,90354.0,90352.0,0.055336]
[1731855545168,0.00013498,90354.0,90352.0,0.416136]
[1731855545169,0.13139031,90353.0,90352.0,0.416136]
[1731855545474,0.00013498,90354.0,90352.0,0.416136]
[1731855545677,0.00013498,90354.0,90352.0,0.44400659]
[1731855546078,0.00013498,90354.0,90353.0,0.33204]
[1731855546475,0.13139031,90362.0,90353.0,0.37562106]
[1731855546681,0.13139031,90364.0,90361.0,0.3608]
[1731855546977,0.13139031,90367.0,90366.0,0.055327]
[1731855547364,8.459e-05,90367.0,90366.0,0.855327]
[1731855548867,0.13139031,90372.0,90366.0,1.187327]
[1731855549063,0.13139031,90372.0,90371.0,0.055324]
[1731855549268,0.0302,90378.0,90371.0,0.055324]
[1731855549269,0.13139031,90373.0,90371.0,0.055324]
[1731855549469,0.13139031,90376.0,90375.0,0.055322]
[1731855549874,0.13149395,90376.0,90375.0,0.055322]
[1731855550181,0.16453046,90384.0,90383.0,0.055317]
[1731855550182,0.13139031,90384.0,90383.0,0.055317]
[1731855550378,0.13139031,90388.0,90385.0,0.055316]
[1731855550568,0.13139031,90389.0,90387.0,0.055314]
[1731855550770,0.0326,90391.0,90389.0,0.055313]
[1731855551277,0.00013178,90390.0,90389.0,0.055313]
[1731855551678,0.00013178,90390.0,90389.0,1.27195445]
[1731855552271,0.13139031,90404.0,90389.0,1.28233139]
[1731855552471,0.0325,90406.0,90399.0,0.055307]
[1731855552878,0.0325,90406.0,90405.0,0.055303]
[1731855553073,0.00046,90413.0,90412.0,0.055299]
[1731855553275,0.00054656,90413.0,90412.0,0.055299]
[1731855553481,0.00054656,90413.0,90412.0,0.8]
[1731855553985,0.08530801,90413.0,90412.0,0.8]
[1731855554372,0.13910391,90413.0,90394.0,0.3608]
[1731855554571,0.055305,90403.0,90395.0,0.055309]
[1731855554881,0.21563858,90405.0,90395.0,0.055309]
[1731855554882,0.19467713,90402.0,90395.0,0.855309]
[1731855555077,0.13087713,90401.0,90395.0,0.855309]
[1731855555680,0.13087713,90401.0,90395.0,0.055309]
[1731855555681,0.08476145,90398.0,90395.0,0.055309]
[1731855555979,0.08476145,90398.0,90389.0,0.02214054]
[1731855555980,0.18618613,90396.0,90389.0,0.02214054]
[1731855556178,0.08476145,90398.0,90389.0,0.02214054]
[1731855556179,0.13087713,90394.0,90389.0,0.02214054]
[1731855556382,0.13087713,90394.0,90387.0,0.055314]
[1731855556383,0.033,90393.0,90387.0,0.055314]
[1731855556580,0.08476145,90391.0,90387.0,0.055314]
[1731855556784,0.055313,90390.0,90387.0,0.055314]
[1731855557078,0.18619013,90390.0,90387.0,0.055314]
[1731855557279,0.13087713,90389.0,90387.0,0.055314]
[1731855557474,0.13087713,90388.0,90387.0,0.055314]
[1731855557680,0.18619113,90388.0,90384.0,0.055316]
[1731855558379,0.18619113,90388.0,90385.0,0.055315]
[1731855558591,0.18619213,90387.0,90385.0,0.055315]
[1731855558881,0.0308,90386.0,90385.0,0.055315]
[1731855559687,0.16167713,90386.0,90385.0,0.055315]
[1731855559881,0.0308,90386.0,90385.0,0.055315]
[1731855560084,0.16167713,90386.0,90385.0,0.055315]
[1731855560583,0.0308,90386.0,90385.0,0.055315]
[1731855561175,0.1617194,90386.0,90385.0,0.055315]
[1731855561382,0.033,90393.0,90383.0,0.055317]
[1731855561580,0.033,90393.0,90391.0,0.055312]
[1731855562087,0.033,90393.0,90381.0,0.3608]
[1731855562288,0.033,90393.0,90376.0,0.8328]
[1731855562289,0.08476145,90387.0,90378.0,0.05532]